bitfinex/quotes_BTCUSD_20251208
["timestamp","ask_amount","ask_price","bid_price","bid_amount"]
[1765218202580,0.01105204,90481.0,90474.0,0.01105289]
[1765218202581,0.01105241,90478.0,90474.0,0.01105289]
[1765218202783,0.23191241,90478.0,90474.0,0.2321092]
[1765218203297,0.01086401,90478.0,90475.0,0.23210736]
[1765218203501,0.0092,90480.0,90478.0,0.22104821]
[1765218203903,0.0092,90480.0,90477.0,0.01105253]
[1765218204113,0.01542,90478.0,90476.0,0.23210494]
[1765218204285,0.01542,90477.0,90476.0,0.23210494]
[1765218204494,0.0092,90480.0,90479.0,0.22104576]
[1765218204696,0.0102,90480.0,90479.0,0.22104576]
[1765218204902,0.02562,90480.0,90479.0,0.22104576]
[1765218205106,0.02462,90480.0,90477.0,0.23210056]
[1765218205311,0.01642,90478.0,90477.0,0.01105253]
[1765218205519,0.01642,90478.0,90475.0,0.01105277]
[1765218205722,0.01542,90477.0,90476.0,0.22105309]
[1765218205871,0.001,90478.0,90477.0,0.22105065]
[1765218206293,0.001,90478.0,90477.0,0.3659062]
[1765218206512,0.23208274,90485.0,90480.0,0.23209329]
[1765218206710,0.23208274,90485.0,90482.0,0.22103806]
[1765218207321,0.23208274,90485.0,90482.0,0.01105192]
[1765218207707,0.01542,90483.0,90478.0,0.22104821]
[1765218207907,0.01542,90479.0,90477.0,0.37695648]
[1765218208143,0.01542,90478.0,90477.0,0.15590808]
[1765218208683,0.25725576,90480.0,90477.0,0.37695873]
[1765218208684,0.01105216,90480.0,90477.0,0.37695873]
[1765218208872,0.23208226,90486.0,90482.0,0.01105192]
[1765218209013,0.01105143,90486.0,90483.0,0.2210338]
[1765218209209,0.23208051,90486.0,90483.0,0.2210338]
[1765218209414,0.23208307,90485.0,90482.0,0.01105192]
[1765218209622,0.01105131,90487.0,90484.0,0.22103238]
[1765218209834,0.2320776,90487.0,90483.0,0.23208692]
[1765218210086,0.01748,90488.0,90486.0,0.22102766]
[1765218210215,0.01748,90488.0,90487.0,0.22102622]
[1765218210613,0.22100733,90495.0,90487.0,0.22102622]
[1765218210614,0.22100983,90494.0,90487.0,0.23633622]
[1765218210871,0.89978352,90530.0,90494.0,0.01105045]
[1765218210872,0.01104984,90499.0,90494.0,0.01105045]
[1765218211065,0.01104972,90500.0,90496.0,0.01105021]
[1765218211305,0.2320462,90500.0,90497.0,0.23204963]
[1765218211445,0.01748,90501.0,90498.0,0.23204921]
[1765218211645,0.01748,90501.0,90499.0,0.22099466]
[1765218211846,0.01748,90501.0,90500.0,0.22099447]
[1765218213280,0.02048,90501.0,90500.0,0.22099447]
[1765218213502,0.220997,90499.0,90496.0,0.01105021]
[1765218213715,0.02646972,90500.0,90496.0,0.01105021]
[1765218213935,0.01542,90497.0,90496.0,0.23205445]
[1765218214167,0.02248,90501.0,90500.0,0.22099447]
[1765218214415,0.02048,90501.0,90500.0,0.22099447]
[1765218214614,0.01748,90501.0,90500.0,0.22099447]
[1765218215017,0.01748,90501.0,90498.0,0.23204905]
[1765218215018,0.0285296,90501.0,90498.0,0.23204905]
[1765218215222,0.01748,90501.0,90499.0,0.36585113]
[1765218215427,0.01748,90501.0,90500.0,0.22099447]
[1765218216055,0.0092,90506.0,90505.0,0.22098226]
[1765218216467,0.01748,90509.0,90508.0,0.22097494]
[1765218216871,0.0329,90509.0,90508.0,0.22097494]
[1765218217080,0.05806,90509.0,90508.0,0.22097494]
[1765218217291,0.0329,90509.0,90508.0,0.22097494]
[1765218217497,0.01748,90509.0,90508.0,0.22097494]
[1765218217697,0.0329,90509.0,90506.0,0.01104899]
[1765218217873,0.01542,90508.0,90506.0,0.01104899]
[1765218218042,0.01542,90508.0,90507.0,0.220975]
[1765218219144,0.01542,90508.0,90507.0,0.22097738]
[1765218219360,0.23202799,90507.0,90504.0,0.2320318]
[1765218219600,0.01104935,90503.0,90500.0,0.36585001]
[1765218219796,0.01542,90501.0,90500.0,0.37689973]
[1765218220020,0.00593,90505.0,90504.0,0.2209847]
[1765218221200,0.00593,90505.0,90504.0,0.36584025]
[1765218221550,0.00261287,90507.0,90504.0,0.36584025]
[1765218221551,0.001,90507.0,90506.0,0.22097982]
[1765218221755,0.001,90507.0,90506.0,0.14485555]
[1765218221973,0.001,90507.0,90506.0,0.38114537]
[1765218222174,0.01748,90519.0,90516.0,0.01104777]
[1765218222384,0.01748,90519.0,90518.0,0.22095052]
[1765218222580,0.2384282,90519.0,90517.0,0.14485555]
[1765218222816,0.01643,90518.0,90517.0,0.14485555]
[1765218223499,0.23738052,90518.0,90517.0,0.14485555]
[1765218224233,0.001,90518.0,90517.0,0.36580852]
[1765218224422,0.001,90518.0,90517.0,0.38122852]
[1765218224627,0.001,90518.0,90517.0,0.23637297]
[1765218224827,0.001,90518.0,90517.0,0.22095297]
[1765218225509,0.0098,90518.0,90517.0,0.22095297]
[1765218225739,0.001,90518.0,90517.0,0.22095297]
[1765218225897,0.01743,90518.0,90516.0,0.22095532]
[1765218226100,0.03978,90517.0,90515.0,0.01104789]
[1765218226287,0.01643,90516.0,90515.0,0.01104789]
[1765218226482,0.01643,90516.0,90515.0,0.23200574]
[1765218226680,0.001,90518.0,90517.0,0.22095297]
[1765218226918,0.22093963,90523.0,90520.0,0.22094497]
[1765218227136,0.23198654,90523.0,90521.0,0.22094285]
[1765218227304,0.00023772,90528.0,90526.0,0.22093047]
[1765218227504,0.00185059,90528.0,90525.0,0.01104667]
[1765218227748,0.00185059,90528.0,90526.0,0.220931]
[1765218227960,0.00185059,90528.0,90527.0,0.22092856]
[1765218228522,0.00185059,90528.0,90526.0,0.220931]
[1765218228728,0.00185059,90528.0,90527.0,0.22092856]
[1765218229378,0.00285059,90528.0,90527.0,0.22092856]
[1765218230265,0.00285059,90528.0,90525.0,0.23197876]
[1765218230566,0.00285059,90528.0,90527.0,0.22092856]
[1765218231262,0.00185059,90528.0,90527.0,0.22092856]
[1765218231565,0.00285059,90528.0,90527.0,0.38120411]
[1765218231713,0.00123772,90528.0,90527.0,0.40533411]
[1765218232138,0.00023772,90528.0,90527.0,0.42749004]
[1765218232360,0.00123772,90528.0,90527.0,0.42749004]
[1765218232798,0.00123772,90528.0,90527.0,0.42849004]
[1765218232799,0.00023772,90528.0,90527.0,0.42849004]
[1765218233430,0.00023772,90528.0,90527.0,2.42849004]
[1765218233756,0.00023772,90528.0,90527.0,2.75149004]
[1765218234609,0.00023772,90528.0,90527.0,0.98013004]
[1765218234787,0.00023772,90528.0,90527.0,0.95997411]
[1765218235206,0.00023772,90528.0,90527.0,0.69078411]
[1765218236085,0.00023772,90528.0,90527.0,0.68878411]
[1765218236617,0.00023772,90528.0,90527.0,0.72833411]
[1765218236822,0.00023772,90528.0,90527.0,1.12239904]
[1765218237029,0.00023772,90528.0,90527.0,0.83608211]
[1765218237221,0.00023772,90528.0,90527.0,0.86723211]
[1765218237403,0.00123772,90528.0,90527.0,0.86723211]
[1765218237613,0.00123772,90528.0,90527.0,0.68878411]
[1765218237809,0.00023772,90528.0,90527.0,0.88007011]
[1765218238174,0.00023772,90528.0,90527.0,0.90222604]
[1765218238385,0.00023772,90528.0,90527.0,0.90422604]
[1765218239036,0.00556397,90543.0,90541.0,0.2208944]
[1765218239235,0.00556397,90543.0,90542.0,0.16994783]
[1765218240404,0.00556397,90543.0,90542.0,0.19407783]
[1765218240591,0.00556397,90543.0,90542.0,0.21623376]
[1765218240819,0.00600961,90543.0,90542.0,0.21623376]
[1765218241023,0.00800961,90543.0,90542.0,0.53923376]
[1765218241644,0.00900961,90543.0,90542.0,0.53923376]
[1765218241810,0.00700961,90543.0,90542.0,2.60175675]
[1765218242201,0.00600961,90543.0,90542.0,2.60375675]
[1765218242385,0.00600961,90543.0,90542.0,2.46013892]
[1765218243369,0.00600961,90543.0,90542.0,2.45913892]
[1765218243574,0.00600961,90543.0,90542.0,1.10464888]
[1765218243869,0.00600961,90543.0,90542.0,1.10764888]
[1765218245283,0.00600961,90543.0,90542.0,1.25226671]
[1765218247540,0.00600961,90543.0,90542.0,1.25126671]
[1765218247740,0.00600961,90543.0,90542.0,1.25426671]
[1765218247941,0.00600961,90543.0,90542.0,1.26526671]
[1765218248366,0.00600961,90543.0,90542.0,1.28274671]
[1765218248575,0.00600961,90543.0,90542.0,1.24264271]
[1765218248784,0.00600961,90543.0,90542.0,1.09765971]
[1765218248980,0.00600961,90543.0,90542.0,0.67250079]
[1765218249158,0.00600961,90543.0,90542.0,0.60192279]
[1765218249365,0.00600961,90543.0,90542.0,0.57782279]
[1765218249547,0.00600961,90543.0,90542.0,0.40683979]
[1765218249776,0.228512,90543.0,90542.0,0.016]
[1765218250022,0.244702,90543.0,90542.0,0.011296]
[1765218250223,0.244702,90543.0,90542.0,0.000296]
[1765218250224,0.267422,90543.0,90542.0,0.000296]
[1765218250530,0.268422,90543.0,90542.0,0.003296]
[1765218250749,0.00862248,90543.0,90542.0,0.000296]
[1765218250928,0.00762248,90543.0,90542.0,0.000296]
[1765218251105,0.02681248,90543.0,90542.0,0.000296]
[1765218251310,0.04953248,90543.0,90542.0,0.22118796]
[1765218252352,0.01062248,90543.0,90542.0,0.22118796]
[1765218253134,0.04923248,90543.0,90542.0,0.000296]
[1765218253525,0.04923248,90543.0,90542.0,0.22118796]
[1765218253727,0.04923248,90543.0,90542.0,0.000296]
[1765218255767,0.270122,90543.0,90542.0,0.000296]
[1765218255970,0.29231799,90543.0,90542.0,0.000296]
[1765218256354,0.02652248,90543.0,90542.0,0.000296]
[1765218256868,0.01062248,90543.0,90542.0,0.22118796]
[1765218257537,0.02652248,90543.0,90542.0,0.22118796]
[1765218258721,0.02652248,90543.0,90542.0,0.23707796]
[1765218258722,0.01062248,90543.0,90542.0,0.23707796]
[1765218258956,0.01062248,90543.0,90542.0,0.26041796]
[1765218259129,0.01062248,90543.0,90542.0,0.23707796]
[1765218259337,0.01062248,90543.0,90542.0,0.22118796]
[1765218259870,0.00762248,90543.0,90542.0,0.22118796]
[1765218260723,0.02352248,90543.0,90542.0,0.22118796]
[1765218261242,0.00762248,90543.0,90542.0,0.22118796]
[1765218262772,0.00762248,90543.0,90542.0,0.23707796]
[1765218262773,0.00800961,90543.0,90542.0,0.23707796]
[1765218262981,0.00900961,90543.0,90542.0,0.26041796]
[1765218263177,0.0002334,90550.0,90542.0,0.26041796]
[1765218263178,0.0002334,90550.0,90549.0,0.24303081]
[1765218263379,0.0002334,90550.0,90549.0,0.25892081]
[1765218263591,0.0002334,90550.0,90549.0,0.28226081]
[1765218264248,0.0002334,90550.0,90549.0,0.22087488]
[1765218264449,0.0002334,90550.0,90549.0,0.23676488]
[1765218264607,0.0002334,90550.0,90549.0,0.25892081]
[1765218264815,0.0002334,90550.0,90549.0,0.28226081]
[1765218265025,0.0002334,90550.0,90549.0,0.26010488]
[1765218265227,0.0161334,90550.0,90549.0,0.22187488]
[1765218265434,0.0002334,90550.0,90549.0,0.23876488]
[1765218265636,0.0002334,90550.0,90549.0,0.22287488]
[1765218265833,0.0002334,90550.0,90549.0,0.22187488]
[1765218266044,0.0002334,90550.0,90549.0,0.22087488]
[1765218266237,0.0002334,90550.0,90549.0,0.001]
[1765218266238,0.02878989,90550.0,90549.0,0.001]
[1765218266438,0.24966233,90550.0,90549.0,0.001]
[1765218266617,0.27237233,90550.0,90549.0,0.001]
[1765218266817,0.27437233,90550.0,90549.0,0.001]
[1765218267443,0.22088464,90545.0,90544.0,0.13560822]
[1765218267624,0.23839751,90545.0,90544.0,0.13560822]
[1765218267824,0.23839751,90545.0,90542.0,0.000296]
[1765218267825,0.22088952,90543.0,90542.0,0.000296]
[1765218268047,0.26969838,90543.0,90542.0,0.000296]
[1765218268249,0.27021239,90543.0,90542.0,0.000296]
[1765218268455,0.02661287,90543.0,90542.0,0.000296]
[1765218268650,0.04409287,90543.0,90542.0,0.000296]
[1765218269426,0.03119287,90543.0,90542.0,0.000296]
[1765218269633,0.00261287,90543.0,90542.0,0.016186]
[1765218270104,0.00561287,90543.0,90542.0,0.016186]
[1765218270474,0.00461287,90543.0,90542.0,0.000296]
[1765218270879,0.00561287,90543.0,90542.0,0.000296]
[1765218271293,0.00161287,90543.0,90542.0,0.000296]
[1765218272482,0.00161287,90543.0,90542.0,0.016186]
[1765218272810,0.01748,90549.0,90547.0,0.22087976]
[1765218272973,0.01748,90549.0,90548.0,0.02684]
[1765218273172,0.01748,90549.0,90548.0,0.05018]
[1765218273857,0.01848,90549.0,90548.0,0.05018]
[1765218274419,0.01748,90549.0,90548.0,0.05018]
[1765218274587,0.02048,90549.0,90548.0,0.05018]
[1765218275447,0.003,90549.0,90548.0,0.27105732]
[1765218275611,0.003,90549.0,90548.0,0.29321325]
[1765218276591,0.002,90549.0,90548.0,0.29321325]
[1765218276836,0.002,90549.0,90548.0,0.29821325]
[1765218277240,0.002,90549.0,90548.0,0.62121325]
[1765218277798,0.0002334,90550.0,90549.0,0.54387488]
[1765218277983,0.0002334,90550.0,90549.0,0.58192081]
[1765218278144,0.0002334,90550.0,90549.0,0.60526081]
[1765218278529,0.0002334,90550.0,90549.0,0.58310488]
[1765218278892,0.0002334,90550.0,90549.0,0.60526081]
[1765218279572,0.0002334,90550.0,90549.0,0.59010488]
[1765218280031,0.0002334,90550.0,90549.0,0.59310488]
[1765218280437,0.0002334,90550.0,90549.0,0.59010488]
[1765218280607,0.0002334,90550.0,90549.0,0.7257131]
[1765218280807,0.0002334,90550.0,90549.0,0.7187131]
[1765218281171,0.0002334,90550.0,90549.0,0.7197131]
[1765218281375,0.0002334,90550.0,90549.0,0.7227131]
[1765218281900,0.0002334,90550.0,90549.0,0.74486903]
[1765218282224,0.0002334,90550.0,90549.0,0.7197131]
[1765218282431,0.0002334,90550.0,90549.0,0.7217131]
[1765218282769,0.0002334,90550.0,90549.0,0.74386903]
[1765218283122,0.0002334,90550.0,90549.0,0.74286903]
[1765218283320,0.0002334,90550.0,90549.0,0.7217131]
[1765218283941,0.0002334,90550.0,90549.0,0.6983731]
[1765218284655,0.0002334,90550.0,90549.0,0.7203131]
[1765218285076,0.0002334,90550.0,90549.0,0.6973731]
[1765218285400,0.0002334,90550.0,90549.0,0.13660822]
[1765218285401,0.23868871,90550.0,90549.0,0.13660822]
[1765218285598,0.23868871,90550.0,90549.0,0.13760822]
[1765218285929,0.01781627,90550.0,90549.0,0.3584831]
[1765218286351,0.00184627,90550.0,90549.0,0.3584831]
[1765218286558,0.00184627,90550.0,90549.0,0.3574831]
[1765218286760,0.00184627,90550.0,90549.0,0.3564831]
[1765218286960,0.00184627,90550.0,90549.0,0.13660822]
[1765218287277,0.22271871,90550.0,90549.0,0.13760822]
[1765218287476,0.22271871,90550.0,90549.0,0.13660822]
[1765218287691,0.23868871,90550.0,90549.0,0.13660822]
[1765218287927,0.25616871,90550.0,90549.0,0.13660822]
[1765218288130,0.28115871,90550.0,90549.0,0.13660822]
[1765218288629,0.25616871,90550.0,90549.0,0.13660822]
[1765218289604,0.01932627,90550.0,90549.0,0.13660822]
[1765218289791,0.00184627,90550.0,90549.0,0.3990831]
[1765218289994,0.00184627,90550.0,90549.0,0.3574831]
[1765218290480,0.01781627,90550.0,90549.0,0.13660822]
[1765218290633,0.23868871,90550.0,90549.0,0.13660822]
[1765218290832,0.01781627,90550.0,90549.0,0.3574831]
[1765218291018,0.01781627,90550.0,90549.0,0.13660822]
[1765218291426,0.01781627,90550.0,90549.0,0.3574831]
[1765218292491,0.01781627,90550.0,90549.0,0.13660822]
[1765218292614,0.26367871,90550.0,90549.0,0.001]
[1765218292823,0.2858747,90550.0,90549.0,0.001]
[1765218293729,0.2888747,90550.0,90549.0,0.001]
[1765218293987,0.22088952,90543.0,90542.0,0.000296]
[1765218294212,0.23685952,90543.0,90542.0,0.000296]
[1765218294577,0.26184952,90543.0,90542.0,0.000296]
[1765218295627,0.26384952,90543.0,90542.0,0.000296]
[1765218295973,0.26384952,90543.0,90503.0,0.09121245]
[1765218295974,0.22097005,90510.0,90509.0,0.13560822]
[1765218296192,0.01104874,90508.0,90504.0,0.13560822]
[1765218296392,0.22097047,90510.0,90506.0,0.22097845]
[1765218296594,0.02209838,90511.0,90508.0,0.01104874]
[1765218296855,0.01105,90511.0,90508.0,0.23202272]
[1765218297056,0.01105,90511.0,90508.0,0.23202287]
[1765218297204,0.01105,90511.0,90509.0,0.22197201]
[1765218297604,0.01105,90511.0,90509.0,0.001]
[1765218297605,0.01597,90510.0,90509.0,0.001]
[1765218298050,0.01105,90511.0,90510.0,0.22097005]
[1765218299309,0.01105,90511.0,90510.0,0.22297005]
[1765218300068,0.01748,90517.0,90514.0,0.01104801]
[1765218300207,0.01748,90517.0,90515.0,0.22095696]
[1765218300423,0.01748,90517.0,90516.0,0.0165]
[1765218300829,0.01748,90517.0,90515.0,0.2209575]
[1765218301029,0.01748,90517.0,90510.0,0.002]
[1765218301030,0.01104813,90513.0,90510.0,0.002]
[1765218301276,0.01104813,90513.0,90475.0,1.11772901]
[1765218301277,0.01104935,90503.0,90495.0,0.01105033]
[1765218301485,0.01748,90505.0,90499.0,0.01104984]
[1765218301704,0.01748,90505.0,90503.0,0.22098685]
[1765218302267,0.01748,90505.0,90504.0,0.2209847]
[1765218302477,0.01578,90504.0,90501.0,0.0110496]
[1765218302684,0.01748,90505.0,90503.0,0.22098714]
[1765218302949,0.01748,90505.0,90504.0,0.2209847]
[1765218303470,0.25424226,90505.0,90504.0,0.003]
[1765218303732,0.03326,90505.0,90504.0,0.003]
[1765218304114,0.27776226,90505.0,90504.0,0.003]
[1765218305303,0.27776226,90505.0,90484.0,0.01105167]
[1765218305304,0.01105021,90496.0,90484.0,0.1456]
[1765218305502,0.23208622,90484.0,90479.0,0.24408605]
[1765218305708,0.22105309,90476.0,90475.0,0.01246]
[1765218306019,0.01105204,90481.0,90475.0,0.01246]
[1765218306020,0.01105,90503.0,90500.0,0.01104972]
[1765218306223,0.01748,90498.0,90496.0,0.22100236]
[1765218307398,0.01748,90498.0,90497.0,0.04125]
[1765218308029,0.01748,90498.0,90497.0,0.0165]
[1765218308265,0.01748,90498.0,90497.0,0.2375018]
[1765218308670,0.01748,90498.0,90497.0,0.2395018]
[1765218309062,0.01748,90498.0,90497.0,0.2445018]
[1765218311207,0.01748,90498.0,90497.0,0.2692518]
[1765218311416,0.01105,90511.0,90510.0,0.22097005]
[1765218311620,0.02853,90511.0,90510.0,0.22097005]
[1765218312022,0.02853,90511.0,90505.0,0.01104911]
[1765218312023,0.2209873,90503.0,90499.0,0.2320419]
[1765218312215,0.01104935,90503.0,90500.0,0.23204389]
[1765218312583,0.0110496,90501.0,90497.0,0.23205187]
[1765218312764,0.23204163,90501.0,90497.0,0.23205187]
[1765218313296,0.01104947,90502.0,90499.0,0.002]
[1765218313481,0.01104947,90502.0,90499.0,0.01104984]
[1765218313678,0.05366287,90511.0,90505.0,0.01104911]
[1765218313914,0.22097533,90508.0,90506.0,0.23202811]
[1765218314116,0.01104886,90507.0,90503.0,0.01104935]
[1765218314503,0.23202641,90507.0,90504.0,0.2209847]
[1765218314705,0.22097614,90508.0,90505.0,0.01104911]
[1765218314940,0.22097742,90507.0,90505.0,0.01104911]
[1765218315146,0.00161287,90508.0,90505.0,0.01104911]
[1765218315466,0.00161287,90508.0,90506.0,0.22097982]
[1765218315782,0.00161287,90508.0,90507.0,0.1456]
[1765218315937,0.00161287,90508.0,90507.0,0.36657738]
[1765218316134,0.23896781,90508.0,90507.0,0.1456]
[1765218316304,0.01799287,90508.0,90507.0,0.1456]
[1765218316963,0.02853,90511.0,90509.0,0.22097203]
[1765218317118,0.02853,90511.0,90507.0,0.36657738]
[1765218317119,0.02418,90510.0,90507.0,0.1456]
[1765218317328,0.02418,90510.0,90504.0,0.001]
[1765218317329,0.22098226,90505.0,90504.0,0.001]
[1765218317570,0.22098226,90505.0,90487.0,0.01105131]
[1765218317571,0.23205427,90497.0,90493.0,0.01105057]
[1765218317978,0.02418,90504.0,90503.0,0.22098714]
[1765218318207,0.01104935,90503.0,90497.0,0.01105009]
[1765218318397,0.01748,90504.0,90503.0,0.22098714]
[1765218318944,0.03386,90504.0,90503.0,0.22098714]
[1765218319165,0.03386,90504.0,90503.0,0.002]
[1765218319396,0.2548447,90504.0,90503.0,0.002]
[1765218319591,0.2790247,90504.0,90503.0,0.002]
[1765218319795,0.05804,90504.0,90503.0,0.002]
[1765218319998,0.2790247,90504.0,90503.0,0.002]
[1765218320381,0.28063757,90504.0,90503.0,0.002]
[1765218320878,0.28063757,90504.0,90495.0,0.22100461]
[1765218320879,0.01104996,90498.0,90495.0,0.22100461]
[1765218321084,0.23204906,90500.0,90496.0,0.22100405]
[1765218321306,0.23204906,90500.0,90498.0,0.22099934]
[1765218321519,0.01105,90503.0,90498.0,0.01104996]
[1765218321685,0.01105,90503.0,90501.0,0.22099142]
[1765218321889,0.01105,90503.0,90502.0,0.22098959]
[1765218322053,0.01105,90503.0,90500.0,0.01104972]
[1765218322252,0.01105,90503.0,90502.0,0.22098959]
[1765218322493,0.00161287,90504.0,90503.0,0.22098714]
[1765218322711,0.01104862,90509.0,90506.0,0.23202656]
[1765218322907,0.24306608,90511.0,90508.0,0.22097494]
[1765218323333,0.24306608,90511.0,90508.0,0.23202368]
[1765218323539,0.01748,90510.0,90509.0,0.22097249]
[1765218324986,0.22097747,90507.0,90504.0,0.23203193]
[1765218325208,0.22097249,90509.0,90505.0,0.01104911]
[1765218325412,0.22097535,90508.0,90505.0,0.01104911]
[1765218325616,0.22097249,90509.0,90505.0,0.23203108]
[1765218326408,0.23202111,90509.0,90506.0,0.2320264]
[1765218326599,0.27367873,90510.0,90507.0,0.22097718]
[1765218326881,0.01104874,90508.0,90504.0,0.01404923]
[1765218327082,0.01638,90507.0,90505.0,0.22098226]
[1765218327283,0.23735759,90507.0,90504.0,0.01204923]
[1765218327448,0.24840645,90507.0,90505.0,0.003]
[1765218327644,0.01105045,90494.0,90479.0,0.02262]
[1765218327855,0.01748,90497.0,90494.0,0.01105045]
[1765218328081,0.01748,90497.0,90491.0,0.01105082]
[1765218328082,0.22100741,90495.0,90491.0,0.01105082]
[1765218328310,0.22100741,90495.0,90490.0,0.01105094]
[1765218328311,0.01105045,90494.0,90488.0,0.01181]
[1765218328496,0.01105057,90493.0,90488.0,0.01105118]
[1765218328794,0.23206812,90491.0,90488.0,0.01105118]
[1765218328951,0.23206498,90492.0,90489.0,0.23207011]
[1765218329155,0.01748,90497.0,90493.0,0.22101156]
[1765218329341,0.01748,90497.0,90491.0,0.23406726]
[1765218329342,0.01748,90497.0,90491.0,0.01305082]
[1765218329695,0.01748,90497.0,90495.0,0.22100452]
[1765218329840,0.23848231,90497.0,90494.0,0.23205881]
[1765218330270,0.23848208,90497.0,90493.0,0.01105057]
[1765218330466,0.01748,90497.0,90496.0,0.22100424]
[1765218330694,0.01748,90497.0,90494.0,0.23205918]
[1765218330927,0.01104923,90504.0,90494.0,0.23205918]
[1765218330928,0.23202574,90509.0,90504.0,0.01104923]
[1765218331046,0.01748,90506.0,90505.0,0.1456]
[1765218331451,0.23845982,90506.0,90505.0,0.1456]
[1765218332205,0.25483982,90506.0,90505.0,0.1456]
[1765218332367,0.25683982,90506.0,90505.0,0.1456]
[1765218333483,0.25583982,90506.0,90505.0,0.1456]
[1765218333680,0.25483982,90506.0,90505.0,0.1456]
[1765218333882,0.25483982,90506.0,90505.0,0.1476]
[1765218334084,0.25483982,90506.0,90505.0,0.1486]
[1765218337225,0.27901982,90506.0,90505.0,0.1486]
[1765218337586,0.25483982,90506.0,90505.0,0.1486]
[1765218339028,0.27901982,90506.0,90505.0,0.1486]
[1765218339229,0.27901982,90506.0,90505.0,0.003]
[1765218339230,0.34481307,90506.0,90505.0,0.003]
[1765218339443,0.31157127,90506.0,90505.0,0.003]
[1765218339618,0.31157127,90506.0,90481.0,0.01181]
[1765218339619,0.23207726,90488.0,90484.0,0.01105167]
[1765218339855,0.01748,90487.0,90485.0,0.22102884]
[1765218340188,0.01748,90487.0,90486.0,0.22102866]
[1765218340943,0.01105,90489.0,90488.0,0.22102378]
[1765218341144,0.02853,90489.0,90488.0,0.22102378]
[1765218341712,0.03958106,90489.0,90486.0,0.01605143]
[1765218341910,0.02853,90489.0,90486.0,0.01605143]
[1765218342098,0.02853,90489.0,90487.0,0.22102585]
[1765218342300,0.02853,90489.0,90488.0,0.22102378]
[1765218343036,0.02853,90489.0,90488.0,0.22202378]
[1765218343239,0.02853,90489.0,90488.0,0.22502378]
[1765218344513,0.02853,90489.0,90488.0,0.004]
[1765218344709,0.01748,90489.0,90488.0,0.004]
[1765218344956,0.01748,90489.0,90488.0,0.22502378]
[1765218346363,0.01748,90489.0,90488.0,0.004]
[1765218346507,0.01748,90489.0,90488.0,0.22502378]
[1765218348902,0.01748,90489.0,90488.0,0.37062378]
[1765218349130,0.01748,90489.0,90488.0,0.1496]
[1765218349329,0.01748,90489.0,90488.0,0.37062378]
[1765218352746,0.01748,90489.0,90488.0,0.1496]
[1765218353156,0.01748,90489.0,90488.0,0.37062378]
[1765218353352,0.25478133,90489.0,90488.0,0.1496]
[1765218354140,0.27761133,90489.0,90488.0,0.1496]
[1765218354309,0.29980732,90489.0,90488.0,0.1496]
[1765218354745,0.27761133,90489.0,90488.0,0.1496]
[1765218358344,0.27761133,90489.0,90488.0,0.004]
[1765218358738,0.28232732,90489.0,90488.0,0.004]
[1765218358946,0.27761133,90489.0,90488.0,0.004]
[1765218359181,0.28796056,90489.0,90488.0,0.004]
[1765218359381,0.28796056,90489.0,90488.0,0.003]
[1765218359586,0.31015655,90489.0,90488.0,0.003]
[1765218359935,0.22104821,90478.0,90477.0,0.1456]
[1765218360135,0.25445821,90478.0,90477.0,0.1456]
[1765218360304,0.27856821,90478.0,90477.0,0.1456]
[1765218360938,0.05752,90478.0,90465.0,0.1456]
[1765218361127,0.24805753,90466.0,90465.0,0.1456]
[1765218361357,0.04446,90466.0,90465.0,0.1456]
[1765218361573,0.26553753,90466.0,90465.0,0.1456]
[1765218361777,0.22109463,90459.0,90458.0,0.1456]
[1765218362091,0.23702463,90459.0,90458.0,0.1456]
[1765218362241,0.01105522,90455.0,90451.0,0.1456]
[1765218362454,0.01105522,90455.0,90450.0,0.0002]
[1765218362455,0.22111419,90451.0,90450.0,0.0002]
[1765218362652,0.23704419,90451.0,90450.0,0.0002]
[1765218362857,0.26115419,90451.0,90450.0,0.0002]
[1765218363259,0.01593,90451.0,90450.0,0.0002]
[1765218363462,0.23704419,90451.0,90450.0,0.0002]
[1765218363665,0.26115419,90451.0,90450.0,0.0002]
[1765218363867,0.26115419,90451.0,90450.0,0.0042]
[1765218364348,0.26115419,90451.0,90450.0,0.0062]
[1765218364671,0.04004,90451.0,90450.0,0.0062]
[1765218365312,0.26115419,90451.0,90450.0,0.0062]
[1765218365695,0.23704419,90451.0,90450.0,0.0062]
[1765218368374,0.01593,90451.0,90450.0,0.0062]
[1765218368588,0.01105,90452.0,90450.0,0.0062]
[1765218369087,0.01105,90452.0,90451.0,0.22111419]
[1765218369405,0.02979255,90494.0,90451.0,0.22111419]
[1765218369406,0.01105,90458.0,90457.0,0.2321525]
[1765218369671,0.01105,90458.0,90452.0,0.22111174]
[1765218369672,0.00161287,90458.0,90452.0,0.1456]
[1765218369814,0.22110735,90454.0,90452.0,0.1456]
[1765218370012,0.05429772,90458.0,90452.0,0.1456]
[1765218370013,0.01105,90453.0,90452.0,0.37776593]
[1765218370280,0.03018287,90458.0,90453.0,0.01105546]
[1765218370535,0.01105497,90457.0,90453.0,0.01105546]
[1765218370720,0.01105497,90457.0,90452.0,0.1456]
[1765218370721,0.2211093,90453.0,90452.0,0.1456]
[1765218370879,0.01593,90454.0,90452.0,0.1456]
[1765218371083,0.2211093,90453.0,90452.0,0.1456]
[1765218371309,0.2211093,90453.0,90452.0,0.1486]
[1765218372206,0.2611493,90453.0,90452.0,0.1486]
[1765218373227,0.03018287,90458.0,90452.0,0.36971174]
[1765218373434,0.22109962,90457.0,90455.0,0.23215928]
[1765218373642,0.01105497,90457.0,90452.0,0.1506]
[1765218373841,0.22110686,90454.0,90452.0,0.1506]
[1765218374066,0.22110686,90454.0,90452.0,0.1456]
[1765218374343,0.2211093,90453.0,90452.0,0.1476]
[1765218374567,0.2211093,90453.0,90452.0,0.1456]
[1765218374906,0.2605893,90453.0,90452.0,0.1476]
[1765218375113,0.2605893,90453.0,90452.0,0.1456]
[1765218375324,0.2605893,90453.0,90452.0,0.1466]
[1765218375537,0.2605893,90453.0,90452.0,0.1496]
[1765218375735,0.2605893,90453.0,90452.0,0.1486]
[1765218376163,0.2605893,90453.0,90452.0,0.1506]
[1765218376380,0.28278529,90453.0,90452.0,0.005]
[1765218376590,0.38594066,90453.0,90452.0,0.005]
[1765218376826,0.38594066,90453.0,90450.0,0.0002]
[1765218376827,0.24331018,90451.0,90450.0,0.0002]
[1765218377036,0.25942018,90451.0,90450.0,0.0002]
[1765218377279,0.28279018,90451.0,90450.0,0.0002]
[1765218377488,0.26059419,90451.0,90450.0,0.0002]
[1765218377811,0.25474419,90451.0,90450.0,0.0002]